fUSD/lending_fUSD_20240105
["ID","MTS","AMOUNT","RATE_DAILY","PERIOD"]
[310348746,1704487839147,-400.46,0.00029009,2]
[310348747,1704487839156,-556.63,0.00029009,2]
[310348748,1704487839166,-840.97,0.00029009,2]
[310348749,1704487839176,-938.33,0.00029009,2]
[310348750,1704487839185,-398.58,0.00029009,2]
[310348751,1704487839194,-1000.0,0.0002912,7]
[310348752,1704487839204,-2044.52540835,0.00029191,2]
[310348753,1704487839214,-417.22964349,0.00029191,2]
[310348754,1704487839224,-936.87747987,0.00029236,2]
[310348755,1704487839232,-180.53,0.00029244,2]
[310348756,1704487839241,-1026.0,0.00029307,2]
[310348757,1704487839252,-213.56984508,0.00029494,2]
[310348758,1704487839261,-800.52,0.00029541,2]
[310348759,1704487839271,-938.33,0.00029641,2]
[310348760,1704487839281,-936.87747987,0.00029672,2]
[310348761,1704487839290,-254.37,0.00029722,2]
[310348762,1704487839299,-240.21612015,0.00029831,2]
[310348763,1704487839309,-30821.88626013,0.000299,2]
[310348764,1704487839318,-30821.88626008,0.000299,2]
[310348765,1704487839327,-30821.88626008,0.000299,2]
[310348766,1704487839336,-268.22635344,0.000299,2]
[310348767,1704487839346,-175.01190244,0.000299,2]
[310348768,1704487839355,-30821.88626008,0.000299,2]
[310348769,1704487839369,-30821.88626008,0.000299,2]
[310348770,1704487839378,-29529.61013608,0.000299,2]
[310348775,1704487840116,-24000.48723218,0.00028897,2]
[310348777,1704487840126,-609.72365538,0.000299,2]
[310348784,1704487840183,-682.55246862,0.000299,2]
[310348786,1704487840193,-2193.29124916,0.000299,2]
[310348806,1704487841014,-6753.79131675,0.000299,2]
[310348807,1704487841031,-644.20581418,0.000299,2]
[310348809,1704487841043,-656.2074698,0.000299,2]
[310348810,1704487841055,-4174.27848558,0.000299,2]
[310348811,1704487841068,-1038.83200069,0.000299,2]
[310348813,1704487842863,-2290.14786,0.000299,2]
[310348815,1704487845628,-399.13250534,0.00028898,2]
[310348816,1704487845639,-173.52761085,0.00028899,5]
[310348817,1704487845738,-261.60174887,0.00028899,5]
[310348837,1704487866624,1595.0295242,0.00018426,2]
[310348838,1704487870686,4982152.00235808,0.00023,2]
[310348839,1704487879758,3131.05418506,0.00021,2]
[310348840,1704487881959,8279.87914456,9e-05,2]
[310348841,1704487887142,822.10073388,0.00018,2]
[310348842,1704487887977,5500.66427048,0.000217,2]
[310348843,1704487892990,466.15992022,0.0001,2]
[310348844,1704487897369,8000.0,0.00011,2]
[310348845,1704487897940,1019.77203311,0.000217,2]
[310348846,1704487899637,400.99457651,0.00021049,2]
[310348847,1704487900353,6063.54728152,0.000217,2]
[310348848,1704487902257,854.13879068,0.000217,2]
[310348849,1704487902641,7230.80899701,0.000217,2]
[310348850,1704487904769,359.94121681,0.000217,2]
[310348851,1704487905296,500.0,0.000192,2]
[310348852,1704487906617,291.16755468,0.000217,2]
[310348853,1704487910170,7401.10783465,0.000217,2]
[310348854,1704487914139,16062.20630629,6.94e-05,2]
[310348855,1704487921124,5601.15239399,0.000155,2]
[310348856,1704487924855,155.0,0.000217,2]
[310348857,1704487927382,415.042304,0.000199,3]
[310348858,1704487938867,155.87221421,0.000217,2]
[310348859,1704487941809,531.55305458,0.000217,2]
[310348860,1704487941968,360.90269317,0.000285,120]
[310348861,1704487946731,1876.69132383,0.00015,2]
[310348862,1704487952023,217.67123487,0.000217,2]
[310348863,1704487982537,21202.22377772,0.000225,2]
[310348864,1704487989985,205.0,9.8e-05,2]
[310348865,1704487993534,4904.63902809,0.0001305,2]
[310348866,1704487993936,238.18491899,0.000101,2]
[310348867,1704488003144,159.41271008,0.00022929,2]
[310348868,1704488015853,431.4279504,0.00023,2]
[310348869,1704488019227,3656.6934725,0.0002,2]
[310348870,1704488028634,12823.18769477,0.0002,2]
[310348871,1704488030513,1155543.74826872,0.00023,2]
[310348872,1704488038321,1138.91921538,0.00028297,120]
[310348873,1704488047405,1000.0,0.000135,2]
[310348874,1704488047453,281.8979929,0.000125,2]
[310348876,1704488303763,301.47622861,0.00023,2]
[310348877,1704488313839,171.4330426,0.00023,2]
[310348878,1704488323394,865.67550467,0.00023,2]
[310348879,1704488326039,33667.95985811,0.00023,2]
[310348880,1704488333019,3037.08558605,0.00023,2]
[310348881,1704488338071,5319.27465842,0.00023,2]
[310348882,1704488344454,2133.71844056,0.00023,2]
[310348883,1704488346347,359.97538119,0.00023,2]
[310348884,1704488346818,493.26131547,0.00023,2]
[310348885,1704488353348,1910.0088786,0.00023,2]
[310348886,1704488364348,359.97538119,0.00019988,2]
[310348887,1704488384351,184.9139717,0.00019988,2]
[310348888,1704488427802,4260.79493092,0.00023,2]
[310348889,1704488428455,4623.07961382,0.00023,2]
[310348890,1704488446947,171.4330426,0.00023,2]
[310348891,1704488470094,3037.08558605,0.00023,2]
[310348892,1704488553739,206.0,0.00022173,2]
[310348893,1704488608438,342.69,0.00022206,2]
[310348894,1704488651472,214.99471801,0.00023,2]
[310348895,1704488655616,3037.08558605,0.00023,2]
[310348908,1704488722054,155.0,0.00023,2]
[310348909,1704488727477,471.9926114,0.00023,2]
[310348910,1704488736738,277.77504621,0.00023,2]
[310348912,1704488778642,3037.08558605,0.00023,2]
[310348913,1704488791021,2133.71844056,0.00023,2]
[310348919,1704488880737,418.7678946,0.00023,2]
[310348920,1704488903633,3037.08558605,0.00023,2]
[310348930,1704488916278,2440.64580721,0.00023,2]
[310348938,1704488938630,157.79060353,0.00022932,2]
[310348971,1704488964443,2265.06059582,0.00023,2]
[310348979,1704489030660,3037.08558605,0.00023,2]
[310348992,1704489034571,-299.84,0.00023001,2]
[310348993,1704489034584,-2169.32985577,0.00023001,2]
[310348994,1704489034594,-141.66170694,0.00023031,2]
[310348995,1704489034606,-8.33829306,0.00023031,2]
[310348996,1704489034616,-283.29816887,0.00023032,2]
[310348997,1704489034626,-282.25366019,0.00023032,2]
[310348998,1704489034635,-155.0,0.00023032,2]
[310348999,1704489034644,-224.63428457,0.00023032,2]
[310349000,1704489034654,-207.84158297,0.00023032,2]
[310349001,1704489034663,-108.80788134,0.00023032,2]
[310349002,1704489034676,-410.97665615,0.00023032,2]
[310349003,1704489034685,-206.0,0.00023398,2]
[310349004,1704489034694,-559.19420109,0.00023399,2]
[310349005,1704489034703,-164.06,0.000234,2]
[310349006,1704489034713,-159.36,0.00023441,2]
[310349007,1704489034722,-1852.42,0.00023455,2]
[310349008,1704489034731,-150.0,0.00023494,2]
[310349009,1704489034741,-159.36,0.00023565,2]
[310349010,1704489034751,-159.36,0.00023688,2]
[310349011,1704489034761,-166.52,0.00023706,2]
[310349012,1704489034780,-487.95,0.00023719,2]
[310349013,1704489034794,-157.58,0.00023788,2]
[310349014,1704489034805,-159.36,0.00023811,2]
[310349015,1704489034815,-1012.25,0.00023815,2]
[310349016,1704489034825,-263.4371,0.00023825,2]
[310349017,1704489034835,-1065.05,0.00023853,2]
[310349018,1704489034845,-159.37,0.00023903,2]
[310349019,1704489034855,-159.36,0.00023935,2]
[310349020,1704489034865,-250.0,0.00023962,2]
[310349021,1704489034875,-200.0,0.00023984,2]
[310349022,1704489034885,-416.43609893,0.00023985,2]
[310349023,1704489034894,-159.36,0.00024058,2]
[310349024,1704489034904,-189.26,0.00024126,2]
[310349025,1704489034914,-814.78,0.00024126,2]
[310349026,1704489034925,-162.78,0.00024158,2]
[310349027,1704489034935,-215.41,0.00024158,2]
[310349028,1704489034945,-500.0,0.00024158,2]
[310349029,1704489034955,-23890.0,0.00024158,2]
[310349030,1704489034964,-159.36,0.00024181,2]
[310349031,1704489034973,-159.36,0.00024305,2]
[310349032,1704489034982,-151.83,0.00024372,2]
[310349033,1704489034991,-159.36,0.00024428,2]
[310349034,1704489035002,-342.69,0.0002447,2]
[310349035,1704489035012,-159.36,0.00024552,2]
[310349036,1704489035023,-2000.0,0.0002459,2]
[310349037,1704489035033,-157.79060352,0.00024649,2]
[310349038,1704489035043,-159.36,0.00024675,2]
[310349039,1704489035054,-493.70154132,0.00024735,2]
[310349041,1704489035065,-313.74,0.00024735,2]
[310349043,1704489035075,-254.14084406,0.00024735,2]
[310349045,1704489035086,-1418.81,0.00024789,2]
[310349047,1704489035097,-159.36,0.00024798,2]
[310349049,1704489035108,-357.68275087,0.000249,2]
[310349051,1704489035120,-159.36,0.00024922,2]
[310349053,1704489035131,-245.21632003,0.0002496,2]
[310349055,1704489035141,-471.74025163,0.00024985,2]
[310349057,1704489035152,-5313.71603872,0.00024985,2]
[310349059,1704489035163,-1908.2355945,0.00024985,2]
[310349061,1704489035179,-1503.31057737,0.00024985,2]
[310349063,1704489035189,-475.21273311,0.00024985,2]
[310349065,1704489035200,-264.12899529,0.00024985,2]
[310349067,1704489035210,-526.58804281,0.00024985,2]
[310349070,1704489035222,-500.00466881,0.00024985,2]
[310349072,1704489035233,-182.07989329,0.00024985,2]
[310349074,1704489035243,-1397.58967186,0.00024985,2]
[310349076,1704489035254,-471.61303602,0.00024985,2]
[310349078,1704489035265,-2038.87485936,0.00024985,4]
[310349080,1704489035279,-1373.67531305,0.00024985,2]
[310349082,1704489035291,-1532.82915989,0.00024985,2]
[310349084,1704489035302,-202.82084162,0.00024986,2]
[310349086,1704489035314,-7214.87899004,0.00024986,2]
[310349088,1704489035325,-369615.91740052,0.00024987,2]
[310349090,1704489035338,-156.34542084,0.00025,2]
[310349092,1704489035349,-159.36,0.00025045,2]
[310349094,1704489035360,-189.26,0.00025105,2]
[310349096,1704489035370,-159.36,0.00025168,2]
[310349098,1704489035382,-159.36,0.00025292,2]
[310349100,1704489035393,-159.36,0.00025415,2]
[310349102,1704489035405,-784.59,0.00025491,2]
[310349104,1704489035416,-159.36,0.00025539,2]
[310349106,1704489035432,-151.83,0.0002559,2]
[310349108,1704489035443,-159.36,0.00025662,2]
[310349110,1704489035454,-206.0,0.00025686,5]
[310349113,1704489035465,-159.36,0.00025785,2]
[310349114,1704489035476,-150.0,0.00026079,2]
[310349117,1704489035486,-189.26,0.00026083,2]
[310349119,1704489035496,-8737.45928485,0.000263,2]
[310349121,1704489035507,-157.79060352,0.00026366,2]
[310349123,1704489035518,-520.48321937,0.000264,2]
[310349125,1704489035528,-342.69,0.00026733,2]
[310349127,1704489035538,-151.83,0.00026809,2]
[310349129,1704489035549,-231.32,0.00026857,2]
[310349131,1704489035558,-231.32,0.00026999,2]
[310349133,1704489035569,-1250.0,0.00027,3]
[310349134,1704489035580,-189.26,0.00027062,2]
[310349135,1704489035592,-231.32,0.0002714,2]
[310349136,1704489035602,-215.41,0.00027177,2]
[310349137,1704489035613,-231.32,0.00027281,2]
[310349138,1704489035629,-160.41,0.00027397,2]
[310349139,1704489035640,-250.0,0.00027397,2]
[310349140,1704489035650,-250.0,0.000274,2]
[310349141,1704489035660,-231.32,0.00027423,2]
[310349142,1704489035673,-185.0838504,0.000275,2]
[310349143,1704489035684,-231.32,0.00027564,2]
[310349144,1704489035694,-160.41,0.00027635,2]
[310349145,1704489035705,-231.32,0.00027705,2]
[310349146,1704489035716,-231.32,0.00027847,2]
[310349147,1704489035727,-160.41,0.00027872,2]
[310349148,1704489035738,-848.59,0.00027945,2]
[310349149,1704489035748,-206.0,0.00027974,9]
[310349150,1704489035758,-231.32,0.00027988,2]
[310349151,1704489035767,-213.56984508,0.00028,2]
[310349152,1704489035777,-189.26,0.0002804,2]
[310349153,1704489035788,-938.33,0.0002805,2]
[310349154,1704489035800,-938.33,0.0002805,2]
[310349155,1704489035810,-938.33,0.0002805,2]
[310349156,1704489035820,-157.79060352,0.00028083,2]
[310349157,1704489035831,-160.41,0.0002811,2]
[310349158,1704489035840,-1026.0,0.00028117,2]
[310349159,1704489035851,-231.32,0.00028129,2]
[310349160,1704489035862,-231.32,0.00028271,2]
[310349161,1704489035872,-160.41,0.00028347,2]
[310349162,1704489035882,-871.33907656,0.00028412,2]
[310349163,1704489035893,-231.32,0.00028412,2]
[310349164,1704489035904,-7205.84,0.00028461,2]
[310349165,1704489035914,-156.60953703,0.000285,2]
[310349166,1704489035927,-231.32,0.00028553,2]
[310349167,1704489035937,-160.41,0.00028585,2]
[310349168,1704489035951,-784.59,0.00028678,2]
[310349169,1704489035962,-231.32,0.00028695,2]
[310349170,1704489035972,-1876.66,0.00028741,2]
[310349171,1704489035982,-1000.0,0.00028802,7]
[310349172,1704489035992,-1000.0,0.00028802,7]
[310349173,1704489036001,-1000.0,0.00028802,7]
[310349174,1704489036011,-160.41,0.00028822,2]
[310349175,1704489036021,-231.32,0.00028836,2]
[310349176,1704489036031,-731.64,0.00028897,2]
[310349177,1704489036042,-231.32,0.00028977,2]
[310349178,1704489036052,-342.69,0.00028997,2]
[310349179,1704489036063,-11786.41882342,0.00029,2]
[310349180,1704489036074,-1300.0,0.00029,3]
[310349181,1704489036085,-398.55304075,0.00029,2]
[310349182,1704489036095,-189.26,0.00029019,2]
[310349183,1704489036106,-231.32,0.00029119,2]
[310349184,1704489036116,-1000.0,0.0002912,7]
[310349185,1704489036127,-231.32,0.0002926,2]
[310349186,1704489036138,-231.32,0.00029401,2]
[310349187,1704489036148,-231.32,0.00029543,2]
[310349188,1704489036159,-393.31890722,0.00029597,2]
[310349189,1704489036172,-9272.88354829,0.0002961,2]
[310349190,1704489036183,-300.66,0.00029694,2]
[310349191,1704489036194,-300.0,0.00029694,2]
[310349192,1704489036204,-150.0,0.00029694,2]
[310349193,1704489036214,-833.74,0.00029694,2]
[310349194,1704489036225,-150.0,0.00029694,2]
[310349195,1704489036235,-407.06,0.00029694,2]
[310349196,1704489036245,-150.0,0.00029694,2]
[310349197,1704489036256,-100000.0,0.00029699,2]
[310349198,1704489036266,-500.0,0.00029699,2]
[310349199,1704489036276,-179.09290447,0.000297,2]
[310349200,1704489036287,-556.22408528,0.00029747,2]
[310349201,1704489036298,-1000.0,0.00029799,2]
[310349202,1704489036308,-7500.0,0.00029799,2]
[310349203,1704489036318,-47492.8808556,0.000298,2]
[310349204,1704489036335,-279.69657276,0.000298,2]
[310349205,1704489036348,-1295.880596,0.000298,2]
[310349206,1704489036360,-3248.19528749,0.000298,2]
[310349207,1704489036900,-1123.40000002,0.000298,2]
[310349208,1704489036913,-1692.26572143,0.000298,2]
[310349209,1704489036928,-575.59410268,0.000298,2]
[310349210,1704489036944,-1895.43942037,0.000298,2]
[310349211,1704489036959,-3100.00000218,0.000298,2]
[310349212,1704489036970,-5120.32829082,0.000298,2]
[310349213,1704489036996,-288.94234682,0.000298,2]
[310349214,1704489037008,-1682.8704383,0.000298,2]
[310349215,1704489037078,-432.74757826,0.000298,2]
[310349216,1704489037102,-557.6189,0.000298,2]
[310349238,1704489038119,-883.83728,0.000298,2]
[310349239,1704489038203,-14842.55052829,0.000298,2]
[310349240,1704489038285,-160487.75207898,0.000298,2]
[310349241,1704489038295,-903.18494058,0.000298,2]
[310349242,1704489038306,-195.38628542,0.000298,2]
[310349243,1704489038316,-157.79060352,0.000298,2]
[310349244,1704489038325,-439.57915004,0.000298,2]
[310349245,1704489038335,-175.01190244,0.000298,2]
[310349247,1704489038345,-840.51157263,0.00029896,2]
[310349249,1704489038355,-251.44969674,0.00029896,2]
[310349252,1704489038365,-242.95459507,0.00029896,2]
[310349254,1704489038375,-523.53043704,0.00029896,2]
[310349255,1704489038385,-155.31701115,0.00029896,2]
[310349256,1704489038394,-376.79366639,0.00029896,2]
[310349257,1704489038404,-437.95871489,0.00029896,2]
[310349258,1704489038414,-3847.47639643,0.00029896,2]
[310349259,1704489038425,-155.40316722,0.00029896,2]
[310349260,1704489038435,-1131.17602535,0.00029896,2]
[310349261,1704489038444,-2605.2545687,0.00029896,2]
[310349262,1704489038454,-158.21861741,0.00029896,2]
[310349263,1704489038464,-206.40875822,0.00029896,2]
[310349264,1704489038473,-157.4532893,0.00029896,2]
[310349265,1704489038483,-1647.67379549,0.00029896,2]
[310349266,1704489038492,-155.19605017,0.00029896,2]
[310349267,1704489038502,-7485.68006583,0.00029898,2]
[310349268,1704489038512,-10492.4099566,0.00029898,2]
[310349269,1704489038521,-202.84578995,0.00029898,2]
[310349270,1704489038531,-6350.99853366,0.00029898,2]
[310349271,1704489038558,-26936.67226114,0.00029898,2]
[310349272,1704489038568,-155.0,0.00029898,2]
[310349273,1704489038578,-193.48111135,0.00029898,2]
[310349274,1704489038588,-580.84395807,0.00029898,2]
[310349275,1704489038598,-156.19133947,0.00029898,2]
[310349276,1704489038608,-155.0,0.00029898,2]
[310349277,1704489038617,-386.33549374,0.00029898,2]
[310349278,1704489038627,-155.43369151,0.00029898,2]
[310349280,1704489038638,-20089.04820346,0.00029899,2]
[310349282,1704489038647,-469.0,0.000299,5]
[310349284,1704489038657,-232513.52070972,0.000299,2]
[310349290,1704489038707,-3594.0063296,0.000299,2]
[310349293,1704489038725,-3088.14254377,0.000299,2]
[310349325,1704489040378,-7592.36603591,0.000299,2]
[310349327,1704489040396,-588.0017748,0.000299,2]
[310349466,1704489044007,-417.1,0.00029694,2]
[310349469,1704489044018,-7500.0,0.000297,2]
[310349472,1704489044029,-264.33579458,0.000298,2]
[310349474,1704489044038,-16398.01526929,0.000299,2]
[310349477,1704489044182,-209466.75263313,0.000299,2]
[310349478,1704489044194,-905.88782,0.000299,2]
[310349479,1704489044242,-1076.20491741,0.000299,2]
[310349480,1704489044255,-17150.90724947,0.000299,2]
[310349481,1704489044604,-150.0,0.00029694,2]
[310349482,1704489044614,-2546.27516862,0.000299,2]
[310349483,1704489044626,-263.05042615,0.000299,2]
[310349487,1704489045471,-326.39,0.00023788,2]
[310349488,1704489045480,-626.88,0.00029694,2]
[310349489,1704489045490,-8111.80695932,0.000299,2]
[310349490,1704489045541,-619.37340124,0.000299,2]
[310349491,1704489045553,-936.40070905,0.000299,2]
[310349541,1704489045853,-13612.23634291,0.000299,2]
[310349544,1704489045863,-2000.0,0.000299,2]
[310349548,1704489045873,-29984.24213707,0.000299,2]
[310349551,1704489045882,-29984.24213707,0.000299,2]
[310349554,1704489045892,-29984.24213707,0.000299,2]
[310349557,1704489045901,-29984.24213707,0.000299,2]
[310349559,1704489045910,-29984.24213707,0.000299,2]
[310349561,1704489045920,-13866.32633477,0.000299,2]
[310349563,1704489045933,-16117.9158023,0.000299,2]
[310349565,1704489045954,-17582.91678448,0.000299,2]
[310349571,1704489046032,-12401.32535259,0.000299,2]
[310349572,1704489046042,-29984.24213707,0.000299,2]
[310349574,1704489046052,-29984.24213707,0.000299,2]
[310349575,1704489046062,-29984.24213707,0.000299,2]
[310349577,1704489046072,-275.98246239,0.00029907,2]
[310349578,1704489046082,-263.40473358,0.00029907,2]
[310349580,1704489046091,-264.6466645,0.00029907,2]
[310349581,1704489046101,-260.52991191,0.00029907,2]
[310349583,1704489046110,-160.8940582,0.00029907,2]
[310349585,1704489046120,-360.54533661,0.00029908,2]
[310349586,1704489046130,-5085.2560873,0.00029908,2]
[310349587,1704489046139,-196.11052816,0.00029908,2]
[310349589,1704489046149,-252.45349666,0.00029908,2]
[310349591,1704489046159,-284.48599854,0.00029908,2]
[310349592,1704489046169,-190.00550758,0.00029908,2]
[310349593,1704489046180,-189.26,0.00029997,2]
[310349594,1704489046190,-121069.21356247,0.0003,2]
[310349595,1704489046279,-1769.80614347,0.0003,2]
[310349596,1704489046295,-562.80797371,0.0003,2]
[310349597,1704489046306,-6094.26555853,0.0003,2]
[310349598,1704489046319,-643.97892178,0.0003,2]
[310349606,1704489274230,206.0,0.00022398,2]
[310349627,1704489544478,169.6014969,0.0002999,120]
[310349631,1704489758453,150.0,0.000223,2]
[310349632,1704489941786,155.13604869,0.00022918,2]
[310349633,1704489993854,206.0,0.00022905,2]
[310349634,1704490122285,156.60953703,0.00022905,2]
[310349636,1704490212552,871.66096946,0.00022999,2]
[310349637,1704490217290,3849.22022627,0.00022999,2]
[310349638,1704490226792,3037.08558605,0.00022999,2]
[310349639,1704490230556,553.00213721,0.00021849,2]
[310349675,1704490234982,-472.96270286,0.00023,2]
[310349676,1704490234997,-391.9015,0.00023,2]
[310349677,1704490235012,-1743.91782384,0.00023,2]
[310349678,1704490235027,-523.75608307,0.00023,2]
[310349679,1704490235052,-632.71552776,0.00023,2]
[310349680,1704490235083,-690.0362,0.00023,2]
[310349681,1704490235151,-2808.48150703,0.00023,2]
[310349682,1704490235169,-2326.39142144,0.00023,2]
[310349683,1704490235186,-1031.1795158,0.00023,2]
[310349684,1704490235199,-288.79281557,0.00023,2]
[310349685,1704490235213,-500.11320425,0.00023001,2]
[310349686,1704490235226,-324.83144471,0.00023001,2]
[310349687,1704490235267,-9490.35270458,0.00023001,2]
[310349688,1704490235294,-938.24,0.00023001,2]
[310349689,1704490235309,-4403.37307766,0.00023001,2]
[310349733,1704490237918,-1087.37711997,0.00023001,2]
[310349737,1704490237934,-308.46,0.00023001,2]
[310349748,1704490237979,-2412.46520594,0.00023001,2]
[310349751,1704490237991,-10496.83606875,0.00023001,2]
[310349756,1704490238004,-559.19420109,0.00023002,2]
[310349759,1704490238015,-553.00582169,0.00023002,2]
[310349762,1704490238027,-33299.43600266,0.00023002,2]
[310349766,1704490238039,-965.3258109,0.00023005,2]
[310349768,1704490238050,-1783.55694466,0.00023006,2]
[310349770,1704490238061,-575.47649961,0.00023006,2]
[310349772,1704490238073,-1008.228,0.00023023,2]
[310349774,1704490238084,-414.88648268,0.000231,2]
[310349776,1704490238095,-2279.74,0.000231,2]
[310349778,1704490238107,-499.99,0.000231,2]
[310349781,1704490238124,-393.31890722,0.00023139,2]
[310349783,1704490238135,-155.13604866,0.00023313,2]
[310349785,1704490238146,-649.65774219,0.00023397,2]
[310349787,1704490238158,-155.13604866,0.00023709,2]
[310349789,1704490238169,-391.45,0.00023923,2]
[310349792,1704490238180,-150.99,0.000241,2]
[310349793,1704490238191,-164.64,0.000241,2]
[310349795,1704490238202,-155.13604866,0.00024104,2]
[310349797,1704490238214,-1292.07,0.0002442,2]
[310349799,1704490238225,-155.13604866,0.000245,2]
[310349801,1704490238236,-155.13604866,0.00024895,2]
[310349802,1704490238248,-155.13604866,0.00025291,2]
[310349803,1704490238259,-409.5504781,0.00025324,2]
[310349804,1704490238270,-17444.12,0.00025415,2]
[310349805,1704490238281,-194.81,0.00025423,10]
[310349806,1704490238292,-2000.0,0.00025468,2]
[310349807,1704490238303,-870.75,0.00025516,2]
[310349808,1704490238315,-497.16,0.00025534,2]
[310349809,1704490238326,-1894.9,0.00025542,2]
[310349810,1704490238338,-206.0,0.00025555,6]
[310349811,1704490238348,-200.0,0.00025569,2]
[310349812,1704490238361,-3034.62,0.00025581,2]
[310349813,1704490238373,-904.68,0.00025613,2]
[310349814,1704490238383,-500.0,0.00025621,2]
[310349815,1704490238394,-3032.23,0.00025633,2]
[310349816,1704490238405,-1030.2,0.0002565,2]
[310349817,1704490238416,-155.13604866,0.00025686,2]
[310349818,1704490238427,-200.0,0.00025701,2]
[310349820,1704490238437,-500.0,0.00025818,2]
[310349822,1704490238447,-1822.63,0.00025818,2]
[310349824,1704490238459,-384.55,0.00025915,2]
[310349826,1704490238470,-161.93,0.00025927,2]
[310349828,1704490238481,-250.0,0.00025937,2]
[310349829,1704490238492,-2796.57,0.00025939,2]
[310349830,1704490238503,-150.0,0.00025939,2]
[310349831,1704490238515,-2705.0,0.00025939,2]
[310349832,1704490238527,-750.0,0.00025939,2]
[310349833,1704490238538,-250.0,0.00025939,2]
[310349834,1704490238550,-200.0,0.00025976,2]
[310349835,1704490238561,-150.0,0.00026079,2]
[310349838,1704490238572,-155.13604866,0.00026082,2]
[310349839,1704490238583,-161.56,0.00026177,2]
[310349841,1704490238595,-391.45,0.00026187,2]
[310349842,1704490238606,-152.15,0.0002619,2]
[310349843,1704490238617,-161.93,0.00026216,2]
[310349844,1704490238630,-152.03,0.00026235,2]
[310349845,1704490238641,-181.11,0.00026293,2]
[310349846,1704490238651,-1516.25,0.00026298,2]
[310349847,1704490238662,-152.15,0.00026418,2]
[310349848,1704490238673,-162.99,0.00026434,2]
[310349849,1704490238684,-152.03,0.00026437,2]
[310349850,1704490238695,-155.13604866,0.00026477,2]
[310349851,1704490238706,-161.93,0.00026504,2]
[310349852,1704490238717,-152.03,0.00026639,2]
[310349853,1704490238728,-152.15,0.00026645,2]
[310349854,1704490238739,-194.81,0.00026669,10]
[310349855,1704490238750,-161.93,0.00026792,2]
[310349856,1704490238761,-152.03,0.00026841,2]
[310349857,1704490238772,-155.13604866,0.00026872,2]
[310349858,1704490238783,-152.15,0.00026873,2]
[310349859,1704490238795,-384.55,0.00026893,2]
[310349860,1704490238806,-214.6075638,0.00026908,10]
[310349861,1704490238817,-152.03,0.00027043,2]
[310349862,1704490238828,-162.99,0.00027055,2]
[310349863,1704490238839,-161.93,0.0002708,2]
[310349864,1704490238850,-152.15,0.000271,2]
[310349865,1704490238861,-152.03,0.00027244,2]
[310349866,1704490238874,-155.13604866,0.00027268,2]
[310349867,1704490238887,-152.15,0.00027328,2]
[310349868,1704490238922,-161.93,0.00027368,2]
[310349869,1704490238934,-171.1,0.00027397,2]
[310349870,1704490238946,-250.0,0.00027397,2]
[310349871,1704490238958,-250.0,0.000274,2]
[310349872,1704490238970,-152.03,0.00027446,2]
[310349873,1704490238980,-317.0,0.00027473,2]
[310349874,1704490238990,-556.22408528,0.00027545,2]
[310349875,1704490239000,-152.15,0.00027555,2]
[310349876,1704490239009,-171.1,0.00027635,2]
[310349877,1704490239019,-152.03,0.00027648,2]
[310349878,1704490239029,-161.93,0.00027656,2]
[310349879,1704490239040,-155.13604866,0.00027663,2]
[310349880,1704490239050,-162.99,0.00027677,2]
[310349881,1704490239487,-152.03,0.0002785,2]
[310349882,1704490239511,-384.55,0.00027872,2]
[310349883,1704490239525,-171.1,0.00027872,2]
[310349884,1704490239534,-194.81,0.00027915,10]
[310349885,1704490239545,-161.93,0.00027944,2]